[Event "Klatovy Open-B 2024"]
[Site "Klatovy"]
[Date "2024.07.07"]
[Round "9.10"]
[White "Stanke, Petr"]
[Black "Chmelik, Ladislav"]
[Result "1/2-1/2"]
[ECO "A46"]
[WhiteElo "1683"]
[BlackElo "1795"]
[Annotator "NA RC"]
[PlyCount "39"]
[EventDate "2024.06.21"]
[EventType "swiss"]
[EventCountry "CZE"]
[SourceTitle "playchess.com"]
[Source "ChessBase"]
[SourceQuality "1"]
[TimeControl "40/7200:0"]

1. d4 {[%emt 0:00:00]} d5 {[%emt 0:00:00]} 2. c4 {[%emt 0:00:00]} e6 {[%emt 0:00:00]} 3. Nf3 {[%emt 0:00:00]} Nf6 {[%emt 0:00:00]} 4. Nc3 {[%emt 0:00:00]} c5 {[%emt 0:00:00]} 5. dxc5 {[%emt 0:02:18]} Bxc5 {[%emt 0:00:00]} 6. e3 {[%emt 0:00:00]} O-O {[%emt 0:00:11]} 7. Be2 {[%emt 0:02:38]} dxc4 {[%emt 0:03:38]} 8. O-O {[%emt 0:00:00]} Qc7 {[%emt 0:00:33]} 9. Qa4 {[%emt 0:01:13]} a6 {[%emt 0:00:23]} 10. Bxc4 {[%emt 0:03:01]} b5 {[%emt 0:05:09]} 11. Bxb5 {[%emt 0:00:39]} axb5 {[%emt 0:00:00]} 12. Qxa8 {[%emt 0:00:00]} Bb7 {[%emt 0:00:00]} 13. Nxb5 {[%emt 0:00:00]} Qb6 {[%emt 0:00:50]} 14. Qa4 {[%emt 0:00:29]} Bc6 {[%emt 0:00:38]} 15. Qc2 {[%emt 0:07:12]} Bxb5 {[%emt 0:00:00]} 16. Rd1 {[%emt 0:03:16]} Nc6 {[%emt 0:01:28]} 17. Bd2 {[%emt 0:03:44]} Nb4 {[%emt 0:06:45]} 18. Bxb4 {[%emt 0:05:35]} Bxb4 {[%emt 0:01:39]} 19. Nd4 {[%emt 0:01:22]} Bd7 {[%emt 0:00:22]} 20. Qb3 {[%emt 0:03:24]} 1/2-1/2

[Event "Klatovy Open-B 2024"]
[Site "Klatovy"]
[Date "2024.07.07"]
[Round "9.12"]
[White "Brychta, David"]
[Black "Vrzal, Vaclav"]
[Result "1/2-1/2"]
[ECO "A29"]
[WhiteElo "2124"]
[BlackElo "1682"]
[Annotator "RC"]
[PlyCount "55"]
[EventDate "2024.06.21"]
[EventType "swiss"]
[EventCountry "CZE"]
[SourceTitle "playchess.com"]
[Source "ChessBase"]
[SourceQuality "1"]
[TimeControl "40/7200:0"]

1. c4 {[%emt 0:00:00]} e5 {[%emt 0:00:00]} 2. g3 {[%emt 0:00:00]} Nf6 {[%emt 0:00:00]} 3. Bg2 {[%emt 0:00:00]} Nc6 {[%emt 0:00:00]} 4. d3 {[%emt 0:00:00]} d5 {[%emt 0:00:00]} 5. cxd5 {[%emt 0:00:00]} Nxd5 {[%emt 0:00:00]} 6. Nc3 {[%emt 0:00:00]} Nb6 {[%emt 0:00:00]} 7. Nf3 {[%emt 0:00:00]} Be7 {[%emt 0:00:00]} 8. O-O {[%emt 0:00:00]} O-O {[%emt 0:00:00]} 9. a3 {[%emt 0:00:00]} Be6 {[%emt 0:00:00]} 10. Be3 {[%emt 0:00:00]} f5 {[%emt 0:00:18]} 11. Qd2 {[%emt 0:10:59]} Bf6 {[%emt 0:03:34]} 12. Bxb6 {[%emt 0:06:03]} axb6 {[%emt 0:01:26]} 13. e3 {[%emt 0:02:34]} f4 {[%emt 0:09:45]} 14. Ne2 {[%emt 0:05:17]} fxe3 {[%emt 0:06:35]} 15. fxe3 {[%emt 0:01:27]} Qd7 {[%emt 0:04:35]} 16. d4 {[%emt 0:08:50]} Bc4 {[%emt 0:08:19]} 17. Rf2 {[%emt 0:01:35]} Bxe2 {[%emt 0:13:31]} 18. Rxe2 {[%emt 0:00:00]} exd4 {[%emt 0:00:10]} 19. Nxd4 {[%emt 0:00:00]} Nxd4 {[%emt 0:00:11]} 20. exd4 {[%emt 0:00:00]} Qxd4+ {[%emt 0:00:36]} 21. Qxd4 {[%emt 0:01:07]} Bxd4+ {[%emt 0:00:00]} 22. Kh1 {[%emt 0:00:00]} c6 {[%emt 0:01:36]} 23. Rd1 {[%emt 0:00:00]} Rad8 {[%emt 0:02:47]} 24. Red2 {[%emt 0:00:00]} Bf6 {[%emt 0:00:08]} 25. h4 {[%emt 0:00:00]} Rxd2 {[%emt 0:02:41]} 26. Rxd2 {[%emt 0:00:00]} Rd8 {[%emt 0:00:00]} 27. Rxd8+ {[%emt 0:00:00]} Bxd8 {[%emt 0:00:00]} 28. Bh3 {[%emt 0:00:00]} 1/2-1/2

[Event "Klatovy Open-B 2024"]
[Site "Klatovy"]
[Date "2024.07.07"]
[Round "9.13"]
[White "Bubela, Alexander Georg"]
[Black "Mlynek, Jakub"]
[Result "1-0"]
[ECO "D35"]
[WhiteElo "1549"]
[BlackElo "1694"]
[Annotator "NA RC"]
[PlyCount "115"]
[EventDate "2024.06.21"]
[EventType "swiss"]
[EventCountry "CZE"]
[SourceTitle "playchess.com"]
[Source "ChessBase"]
[SourceQuality "1"]
[TimeControl "40/7200:0"]

1. d4 {[%emt 0:00:00]} Nf6 {[%emt 0:00:00]} 2. c4 {[%emt 0:00:00]} e6 {[%emt 0:00:00]} 3. Nc3 {[%emt 0:00:00]} d5 {[%emt 0:00:00]} 4. cxd5 {[%emt 0:00:00]} exd5 {[%emt 0:00:00]} 5. Bg5 {[%emt 0:00:00]} Be7 {[%emt 0:01:14]} 6. e3 {[%emt 0:00:00]} h6 {[%emt 0:00:00]} 7. Bh4 {[%emt 0:00:00]} O-O {[%emt 0:00:15]} 8. Bd3 {[%emt 0:00:00]} Be6 {[%emt 0:01:38]} 9. Qc2 {[%emt 0:00:00]} c5 {[%emt 0:00:48]} 10. Nf3 {[%emt 0:00:00]} Nc6 {[%emt 0:01:50]} 11. a3 {[%emt 0:00:00]} Bg4 {[%emt 0:01:59]} 12. dxc5 {[%emt 0:09:20]} Bxf3 {[%emt 0:00:55]} 13. gxf3 {[%emt 0:00:00]} d4 {[%emt 0:08:47]} 14. Ne4 {[%emt 0:04:15]} Nd5 {[%emt 0:02:09]} 15. Bxe7 {[%emt 0:01:23]} Qxe7 {[%emt 0:00:32]} 16. Bc4 {[%emt 0:01:13]} Rfd8 {[%emt 0:03:55]} 17. O-O-O {[%emt 0:01:40]} Ne5 {[%emt 0:02:36]} 18. Rxd4 {[%emt 0:02:35]} Nc7 {[%emt 0:02:56]} 19. f4 {[%emt 0:05:30]} Rxd4 {[%emt 0:00:54]} 20. exd4 {[%emt 0:00:00]} Nxc4 {[%emt 0:00:03]} 21. d5 {[%emt 0:07:57]} Nxd5 {[%emt 0:13:31]} 22. Qxc4 {[%emt 0:00:31]} Nxf4 {[%emt 0:00:05]} 23. Nd6 {[%emt 0:03:22]} Ne6 {[%emt 0:00:58]} 24. Rg1 {[%emt 0:01:14]} Rd8 {[%emt 0:01:12]} 25. Qc3 {[%emt 0:05:02]} Qh4 {[%emt 0:07:31]} 26. Qf3 {[%emt 0:10:23]} Ng5 {[%emt 0:05:43]} 27. Qxb7 {[%emt 0:03:09]} Qxf2 {[%emt 0:01:43]} 28. Rxg5 {[%emt 0:01:46]} Qe3+ {[%emt 0:00:26]} 29. Kb1 {[%emt 0:00:00]} Qxg5 {[%emt 0:00:25]} 30. Qxf7+ {[%emt 0:00:00]} Kh8 {[%emt 0:00:06]} 31. Qxa7 {[%emt 0:00:00]} Qg6+ {[%emt 0:00:17]} 32. Ka1 {[%emt 0:00:03]} Kh7 {[%emt 0:00:07]} 33. Qe7 {[%emt 0:00:49]} Qc2 {[%emt 0:14:41]} 34. Qe4+ {[%emt 0:00:17]} Qxe4 {[%emt 0:00:00]} 35. Nxe4 {[%emt 0:00:00]} Rd4 {[%emt 0:00:00]} 36. Nd6 {[%emt 0:00:00]} g5 {[%emt 0:00:00]} 37. b4 {[%emt 0:05:34]} Rd2 {[%emt 0:00:00]} 38. b5 {[%emt 0:00:16]} Rxh2 {[%emt 0:00:44]} 39. b6 {[%emt 0:00:22]} g4 {[%emt 0:00:02]} 40. Ne4 {[%emt 0:00:33]} Rh3 {[%emt 0:00:14]} 41. Nf6+ {[%emt 2:01:04]} Kg6 {[%emt 1:59:39]} 42. Nxg4 {[%emt 0:00:00]} h5 {[%emt 0:00:00]} 43. Ne5+ {[%emt 0:08:02]} Kf5 {[%emt 0:00:00]} 44. b7 {[%emt 0:00:06]} Rb3 {[%emt 0:00:00]} 45. c6 {[%emt 0:00:00]} Kxe5 {[%emt 0:00:00]} 46. c7 {[%emt 0:00:00]} Rxb7 {[%emt 0:00:00]} 47. c8=Q {[%emt 0:00:00]} Re7 {[%emt 0:00:00]} 48. Qc5+ {[%emt 0:00:00]} Ke6 {[%emt 0:00:00]} 49. Qxh5 {[%emt 0:00:00]} Ra7 {[%emt 0:00:00]} 50. Qh6+ {[%emt 0:00:00]} Kd5 {[%emt 0:00:00]} 51. Qg5+ {[%emt 0:00:00]} Kc4 {[%emt 0:00:00]} 52. Qf4+ {[%emt 0:00:00]} Kb5 {[%emt 0:00:00]} 53. Qb4+ {[%emt 0:00:00]} Kc6 {[%emt 0:00:00]} 54. a4 {[%emt 0:00:00]} Rb7 {[%emt 0:00:00]} 55. Qc4+ {[%emt 0:00:00]} Kb6 {[%emt 0:00:00]} 56. Qd5 {[%emt 0:00:00]} Ka6 {[%emt 0:00:00]} 57. Qc6+ {[%emt 0:00:00]} Rb6 {[%emt 0:00:00]} 58. Qa8# {[%emt 0:43:34]} 1-0

[Event "Klatovy Open-B 2024"]
[Site "Klatovy"]
[Date "2024.07.07"]
[Round "9.14"]
[White "Rezac, Jindrich"]
[Black "Bukvaj, Martin"]
[Result "1/2-1/2"]
[ECO "E97"]
[WhiteElo "1875"]
[BlackElo "1687"]
[Annotator "NA RC"]
[PlyCount "27"]
[EventDate "2024.06.21"]
[EventType "swiss"]
[EventCountry "CZE"]
[SourceTitle "playchess.com"]
[Source "ChessBase"]
[SourceQuality "1"]
[TimeControl "40/7200:0"]

1. d4 {[%emt 0:00:00]} Nf6 {[%emt 0:00:03]} 2. c4 {[%emt 0:00:00]} g6 {[%emt 0:00:10]} 3. Nc3 {[%emt 0:00:00]} Bg7 {[%emt 0:00:38]} 4. e4 {[%emt 0:00:00]} d6 {[%emt 0:00:18]} 5. Nf3 {[%emt 0:00:25]} O-O {[%emt 0:00:38]} 6. Be2 {[%emt 0:01:31]} e5 {[%emt 0:00:56]} 7. O-O {[%emt 0:01:31]} Nc6 {[%emt 0:01:27]} 8. dxe5 {[%emt 0:14:27]} Nxe5 {[%emt 0:04:57]} 9. Nxe5 {[%emt 0:03:29]} dxe5 {[%emt 0:00:56]} 10. Qxd8 {[%emt 0:04:14]} Rxd8 {[%emt 0:01:19]} 11. Bg5 {[%emt 0:00:21]} c6 {[%emt 0:08:50]} 12. Rfd1 {[%emt 0:18:50]} Be6 {[%emt 0:10:06]} 13. f3 {[%emt 0:02:24]} h6 {[%emt 0:10:47]} 14. Be3 {[%emt 0:03:34]} 1/2-1/2